bitfinex/quotes_BTCUSD_20241103
["timestamp","ask_amount","ask_price","bid_price","bid_amount"]
[1730674654577,0.20539812,68932.0,68931.0,0.12554029]
[1730674655006,0.16232882,68932.0,68931.0,0.12554029]
[1730674658112,0.15032882,68932.0,68931.0,0.12554029]
[1730674658338,0.14032882,68932.0,68931.0,0.12554029]
[1730674658566,0.15832882,68932.0,68931.0,0.12554029]
[1730674658801,0.14532882,68932.0,68931.0,0.12554029]
[1730674659009,0.14932882,68932.0,68931.0,0.12554029]
[1730674659215,0.13932882,68932.0,68931.0,0.12554029]
[1730674660086,0.14432882,68932.0,68931.0,0.12554029]
[1730674660350,0.13932882,68932.0,68931.0,0.12554029]
[1730674660561,0.14432882,68932.0,68931.0,0.12554029]
[1730674660988,0.14632882,68932.0,68931.0,0.12554029]
[1730674661220,0.14232882,68932.0,68931.0,0.12554029]
[1730674661431,0.14532882,68932.0,68931.0,0.12554029]
[1730674661872,0.14832882,68932.0,68931.0,0.12554029]
[1730674662306,0.14032882,68932.0,68931.0,0.12554029]
[1730674662515,0.14432882,68932.0,68931.0,0.12554029]
[1730674662733,0.14632882,68932.0,68931.0,0.12554029]
[1730674662962,0.14232882,68932.0,68931.0,0.12554029]
[1730674663187,0.14532882,68932.0,68931.0,0.12554029]
[1730674664132,0.14332882,68932.0,68931.0,0.12554029]
[1730674664377,0.14432882,68932.0,68931.0,0.12554029]
[1730674667127,0.14596882,68932.0,68931.0,0.12554029]
[1730674668012,0.14596882,68932.0,68931.0,0.13468491]
[1730674668253,0.14496882,68932.0,68931.0,0.13468491]
[1730674668460,0.14196882,68932.0,68931.0,0.13468491]
[1730674668672,0.14296882,68932.0,68931.0,0.13468491]
[1730674668887,0.14396882,68932.0,68931.0,0.13468491]
[1730674669340,0.14296882,68932.0,68931.0,0.13468491]
[1730674670000,0.01240582,68932.0,68931.0,0.13468491]
[1730674670443,0.00264,68932.0,68931.0,0.52235892]
[1730674671759,0.00664,68932.0,68931.0,0.52235892]
[1730674672012,0.00664,68932.0,68931.0,0.52435892]
[1730674672260,0.00764,68932.0,68931.0,0.52435892]
[1730674672472,0.00864,68932.0,68931.0,0.52435892]
[1730674673901,0.00864,68932.0,68931.0,0.53297038]
[1730674676005,0.00364,68932.0,68931.0,0.53297038]
[1730674682720,0.00364,68932.0,68931.0,0.76751653]
[1730674683400,0.00364,68932.0,68931.0,0.65620456]
[1730674683906,0.00364,68932.0,68931.0,0.76751653]
[1730674684112,0.00364,68932.0,68931.0,0.76951653]
[1730674684113,0.00264,68932.0,68931.0,0.76951653]
[1730674684987,0.00164,68932.0,68931.0,0.76551653]
[1730674685435,0.00164,68932.0,68931.0,0.76751653]
[1730674685662,0.00164,68932.0,68931.0,0.76551653]
[1730674685887,0.00164,68932.0,68931.0,0.76751653]
[1730674687254,0.00164,68936.0,68935.0,0.60061512]
[1730674687472,0.00164,68936.0,68935.0,0.74841216]
[1730674687721,0.00164,68936.0,68935.0,0.99931065]
[1730674687933,0.00164,68936.0,68935.0,0.99788351]
[1730674687934,0.00140509,68936.0,68935.0,0.99788351]
[1730674688153,0.00140509,68936.0,68935.0,1.11119548]
[1730674688154,0.00117033,68936.0,68935.0,1.11119548]
[1730674688578,0.19652989,68949.0,68948.0,0.25336718]
[1730674688795,0.19652989,68949.0,68948.0,0.74478816]
[1730674689007,0.00164,68960.0,68950.0,0.25336318]
[1730674689213,0.00164,68960.0,68950.0,0.52216022]
[1730674689429,0.00164,68960.0,68950.0,0.53158616]
[1730674691408,0.00164,68960.0,68950.0,0.64489813]
[1730674691638,0.00264,68951.0,68950.0,0.64489813]
[1730674692081,0.00464,68951.0,68950.0,0.65370929]
[1730674692308,0.00264,68951.0,68950.0,0.65370929]
[1730674692523,0.00364,68951.0,68950.0,0.65970929]
[1730674692748,0.00164,68960.0,68959.0,0.37634618]
[1730674692991,0.00164,68960.0,68959.0,0.74476716]
[1730674693207,0.00164,68960.0,68959.0,0.75653717]
[1730674694556,0.00264,68960.0,68959.0,0.76753717]
[1730674694794,0.21652989,68972.0,68971.0,0.15372318]
[1730674695031,0.21652989,68972.0,68971.0,0.53533219]
[1730674695269,0.21652989,68972.0,68971.0,0.54493329]
[1730674695504,0.21652989,68980.0,68977.0,0.00023418]
[1730674695738,0.21652989,68980.0,68979.0,0.24178597]
[1730674695975,0.21652989,68980.0,68979.0,0.38758301]
[1730674696202,0.21152989,68989.0,68979.0,0.51805601]
[1730674696432,0.21152989,68989.0,68988.0,0.130457]
[1730674696670,0.0779,68992.0,68991.0,0.130451]
[1730674697144,0.0779,68992.0,68991.0,0.13996207]
[1730674697375,0.130442,68996.0,68992.0,0.260899]
[1730674697376,0.0779,68996.0,68992.0,0.260899]
[1730674697588,0.00476582,68997.0,68996.0,0.130442]
[1730674697800,0.00476582,68999.0,68996.0,0.130442]
[1730674698032,0.47216489,69000.0,68996.0,0.00948985]
[1730674698033,0.00476582,68998.0,68996.0,0.00948985]
[1730674698266,0.00476582,68998.0,68997.0,0.13044]
[1730674698705,0.00476582,68998.0,68997.0,0.00948561]
[1730674698920,0.13520282,68999.0,68997.0,0.00948561]
[1730674699144,0.00164,69001.0,68999.0,0.130436]
[1730674699367,0.00164,69001.0,68999.0,0.13333429]
[1730674699643,0.00164,69001.0,69000.0,0.00947288]
[1730674699847,0.00164,69001.0,69000.0,0.13990688]
[1730674700520,0.00164,69001.0,69000.0,0.28570392]
[1730674701196,0.00164,69001.0,69000.0,0.28670392]
[1730674705356,0.00164,69001.0,69000.0,0.3099381]
[1730674706777,0.00164,69001.0,69000.0,0.3089381]
[1730674707260,0.00264,69001.0,69000.0,0.3189381]
[1730674707734,0.00364,69001.0,69000.0,0.3279381]
[1730674716494,0.00364,69001.0,69000.0,0.4077381]
[1730674716714,0.00364,69001.0,69000.0,0.5565381]
[1730674720987,0.00364,69001.0,69000.0,0.5615381]
[1730674722351,0.00364,69001.0,69000.0,0.5565381]
[1730674722556,0.00364,69001.0,69000.0,0.5615381]
[1730674727564,0.00364,69001.0,69000.0,0.5635381]
[1730674728032,0.00364,69001.0,69000.0,0.42770392]
[1730674729199,0.13274,69001.0,69000.0,0.17426992]
[1730674729475,0.26793782,69001.0,69000.0,0.02847288]
[1730674729961,0.26793782,69001.0,69000.0,0.019]
[1730674730916,0.26693782,69001.0,69000.0,0.009]
[1730674731389,0.26693782,69001.0,69000.0,0.013]
[1730674731848,0.26693782,69001.0,69000.0,0.004]
[1730674731849,0.26593782,69001.0,69000.0,0.004]
[1730674732841,0.3450312,69001.0,69000.0,0.007]
[1730674733091,0.26593782,69001.0,69000.0,0.007]
[1730674734245,0.26593782,69001.0,69000.0,0.003]
[1730674734953,0.208249,68992.0,68991.0,0.21652989]
[1730674735438,0.130453,68990.0,68989.0,0.000819]
[1730674736144,0.176153,68990.0,68989.0,0.000819]
[1730674736376,0.176153,68990.0,68989.0,0.01029275]
[1730674736604,0.176153,68990.0,68989.0,0.000819]
[1730674736825,0.176153,68990.0,68989.0,0.01029275]
[1730674737103,0.176153,68990.0,68989.0,0.000819]
[1730674737339,0.0457,68990.0,68989.0,0.01029275]
[1730674737557,0.176153,68990.0,68989.0,0.000819]
[1730674737795,0.18091882,68990.0,68989.0,0.01029275]
[1730674738033,0.18091882,68990.0,68989.0,0.010819]
[1730674738034,0.18191882,68990.0,68989.0,0.010819]
[1730674738276,0.18291882,68990.0,68989.0,0.020819]
[1730674739200,0.26071882,68990.0,68989.0,0.020819]
[1730674744595,0.26571882,68990.0,68989.0,0.020819]
[1730674744874,0.31472747,68990.0,68989.0,0.020819]
[1730674745355,0.46052451,68990.0,68989.0,0.020819]
[1730674745605,0.46552451,68990.0,68989.0,0.020819]
[1730674746560,0.47852451,68990.0,68989.0,0.021819]
[1730674746804,0.47752451,68990.0,68989.0,0.011819]
[1730674747274,0.48852451,68990.0,68989.0,0.012819]
[1730674748694,0.21703782,68980.0,68979.0,0.000819]
[1730674748934,0.52724683,68980.0,68979.0,0.000819]
[1730674749851,0.52924683,68980.0,68979.0,0.000819]
[1730674750309,0.53224683,68980.0,68979.0,0.000819]
[1730674750775,0.6435588,68980.0,68979.0,0.000819]
[1730674751002,0.78619428,68980.0,68979.0,0.000819]
[1730674751289,0.67488231,68980.0,68979.0,0.000819]
[1730674751528,0.78619428,68980.0,68979.0,0.000819]
[1730674754807,0.26516582,68965.0,68964.0,0.21652989]
[1730674755023,0.48179187,68965.0,68964.0,0.21652989]
[1730674755247,0.48179187,68965.0,68964.0,0.22462536]
[1730674755501,0.00476582,68958.0,68957.0,0.21652989]
[1730674755700,0.00476582,68951.0,68950.0,0.21652989]
[1730674755922,0.13529282,68951.0,68950.0,0.21652989]
[1730674756133,0.13053,68950.0,68946.0,0.1]
[1730674756373,0.13053,68950.0,68946.0,0.24579704]
[1730674756574,0.261051,68952.0,68946.0,0.24579704]
[1730674756575,0.13529782,68949.0,68946.0,0.24579704]
[1730674756791,0.13529882,68948.0,68946.0,0.1]
[1730674757019,0.13529882,68948.0,68943.0,0.130541]
[1730674757243,0.130535,68947.0,68944.0,0.24579704]
[1730674757898,0.00476582,68948.0,68944.0,0.37633504]
[1730674758105,0.00476582,68948.0,68945.0,0.130538]
[1730674758321,0.00476582,68948.0,68945.0,0.27633504]
[1730674759190,0.14029882,68948.0,68945.0,0.14579704]
[1730674759406,0.13629882,68948.0,68945.0,0.14579704]
[1730674759615,0.13929882,68948.0,68945.0,0.14579704]
[1730674759856,0.13829882,68948.0,68945.0,0.14579704]
[1730674760072,0.00476582,68947.0,68945.0,0.14579704]
[1730674760292,0.00476582,68945.0,68942.0,0.1]
[1730674760496,0.13530482,68945.0,68942.0,0.24579704]
[1730674760906,0.00476582,68945.0,68942.0,0.24579704]
[1730674761125,0.13530482,68945.0,68942.0,0.37634004]
[1730674761339,0.00476582,68945.0,68944.0,0.1]
[1730674762704,0.00476582,68945.0,68943.0,0.1]
[1730674763612,0.00476582,68944.0,68942.0,0.000819]
[1730674763840,0.00476582,68944.0,68942.0,0.100819]
[1730674764039,0.00476582,68944.0,68943.0,0.001]
[1730674764469,0.13530582,68944.0,68943.0,0.001]
[1730674764683,0.00476582,68944.0,68943.0,0.001]
[1730674765297,0.00476582,68944.0,68942.0,0.100819]
[1730674765507,0.00476582,68944.0,68942.0,0.102819]
[1730674765724,0.00476582,68943.0,68942.0,0.002819]
[1730674766142,0.00476582,68943.0,68942.0,0.000819]
[1730674766381,0.00476582,68943.0,68942.0,0.00902374]
[1730674767327,0.00476582,68943.0,68942.0,0.01102374]
[1730674768505,0.00476582,68943.0,68942.0,0.00902374]
[1730674768736,0.00576582,68943.0,68942.0,0.00902374]
[1730674769690,0.00876582,68943.0,68942.0,0.00902374]
[1730674771223,0.13930782,68943.0,68942.0,0.00902374]
[1730674772104,0.00876582,68943.0,68942.0,0.00902374]
[1730674774222,0.13930782,68943.0,68942.0,0.00902374]
[1730674774435,0.2179232,68943.0,68942.0,0.00902374]
[1730674774643,0.2179232,68943.0,68942.0,0.000819]
[1730674775315,0.2179232,68943.0,68942.0,0.00909936]
[1730674775764,0.13930782,68943.0,68942.0,0.00909936]
[1730674782105,0.13530782,68943.0,68942.0,0.00909936]
[1730674782326,0.13530782,68943.0,68942.0,0.01209936]
[1730674782939,0.13630782,68943.0,68942.0,0.00909936]
[1730674783232,0.13730782,68943.0,68942.0,0.01509936]
[1730674783414,0.241831,68943.0,68942.0,0.01509936]
[1730674785796,0.13730782,68943.0,68942.0,0.01509936]
[1730674786645,0.18590782,68943.0,68942.0,0.01509936]
[1730674789573,0.19090782,68943.0,68942.0,0.01509936]
[1730674795174,0.26870782,68943.0,68942.0,0.01509936]
[1730674798814,0.41450486,68943.0,68942.0,0.01509936]
[1730674799038,0.56164701,68943.0,68942.0,0.01509936]
[1730674799526,0.77295898,68943.0,68942.0,0.01509936]
[1730674799772,1.03924406,68943.0,68942.0,0.01509936]
[1730674800554,1.03924406,68943.0,68910.0,0.000821]
[1730674800555,0.00976582,68916.0,68910.0,0.000821]
[1730674800793,0.25668079,68911.0,68910.0,0.000821]
[1730674801047,0.58027783,68911.0,68910.0,0.000821]
[1730674801272,0.62887783,68911.0,68910.0,0.000821]
[1730674801508,0.92596792,68911.0,68910.0,0.000821]
[1730674802062,0.37808079,68911.0,68910.0,0.000821]
[1730674802265,0.01676582,68911.0,68910.0,0.000821]
[1730674802474,0.14736882,68911.0,68910.0,0.000821]
[1730674802949,0.01676582,68911.0,68910.0,0.000821]
[1730674803860,0.261196,68914.0,68910.0,0.000821]
[1730674803861,0.00476582,68914.0,68910.0,0.000821]
[1730674804110,0.012,68911.0,68910.0,0.131426]
[1730674804349,0.01,68911.0,68910.0,0.131426]
[1730674804580,0.00476582,68917.0,68916.0,0.130593]
[1730674804804,0.00476582,68918.0,68910.0,0.000821]
[1730674805063,0.001,68911.0,68910.0,0.030821]
[1730674805311,0.001,68911.0,68910.0,0.256426]
[1730674805312,0.003,68911.0,68910.0,0.256426]
[1730674805567,0.002,68911.0,68910.0,0.154426]
[1730674805809,0.00476582,68917.0,68910.0,0.14661804]
[1730674806042,0.00476582,68917.0,68911.0,0.14579704]
[1730674806273,0.130601,68912.0,68910.0,0.14661804]
[1730674806502,0.13536882,68911.0,68910.0,0.000821]
[1730674806723,0.13536882,68911.0,68910.0,0.002821]
[1730674807181,0.00476582,68920.0,68916.0,0.130592]
[1730674807416,0.00476582,68920.0,68911.0,0.00290181]
[1730674807417,0.21652989,68917.0,68911.0,0.00290181]
[1730674807643,0.00476582,68915.0,68913.0,0.169963]
[1730674807862,0.00476582,68915.0,68912.0,0.130601]
[1730674807863,0.00476582,68919.0,68914.0,0.130596]
[1730674808086,0.00476582,68915.0,68911.0,0.14579704]
[1730674808304,0.00476582,68915.0,68911.0,0.27639904]
[1730674808526,0.130599,68913.0,68911.0,0.14579704]
[1730674808774,0.130601,68912.0,68911.0,0.14579704]
[1730674809009,0.19637538,68912.0,68911.0,0.14579704]
[1730674809244,0.04292064,68947.0,68937.0,0.00023418]
[1730674809461,0.04292064,68947.0,68935.0,0.261114]
[1730674809462,0.21652989,68941.0,68940.0,0.153548]
[1730674809943,0.21652989,68949.0,68941.0,0.023]
[1730674810176,0.21652989,68949.0,68943.0,0.261085]
[1730674810627,0.00476582,68951.0,68944.0,0.14579704]
[1730674810882,0.00476582,68953.0,68946.0,0.130536]
[1730674811117,0.00476582,68953.0,68950.0,0.130528]
[1730674811336,0.00476582,68953.0,68947.0,0.14579704]
[1730674811794,0.00476582,68953.0,68949.0,0.13053]
[1730674812011,0.008,68951.0,68949.0,0.27632704]
[1730674812243,0.13528982,68953.0,68949.0,0.14579704]
[1730674812491,0.00676582,68953.0,68949.0,0.14579704]
[1730674812707,0.00676582,68953.0,68951.0,0.130527]
[1730674812921,0.13728882,68953.0,68949.0,0.27632704]
[1730674813137,0.136529,68951.0,68949.0,0.14579704]
[1730674813616,0.00476582,68946.0,68940.0,0.1]
[1730674813850,0.00476582,68945.0,68944.0,0.13054]
[1730674814072,0.00476582,68945.0,68941.0,0.14579704]
[1730674814073,0.00476582,68945.0,68943.0,0.130542]
[1730674814292,0.00476582,68945.0,68941.0,0.14579704]
[1730674814293,0.00476582,68945.0,68942.0,0.261086]
[1730674814510,0.00476582,68945.0,68943.0,0.130542]
[1730674814731,0.00476582,68945.0,68941.0,0.14579704]
[1730674814732,0.00476582,68948.0,68942.0,0.261086]
[1730674814967,0.00476582,68948.0,68944.0,0.261081]
[1730674815189,0.00476582,68950.0,68944.0,0.41187804]
[1730674815421,0.00476582,68950.0,68949.0,0.130531]
[1730674815657,0.130524,68953.0,68949.0,0.130531]
[1730674815658,0.00476582,68953.0,68949.0,0.14579704]
[1730674815874,0.00476582,68953.0,68950.0,0.130528]
[1730674816569,0.00476582,68953.0,68949.0,0.14579704]
[1730674817012,0.130529,68951.0,68947.0,0.130534]
[1730674817236,0.130529,68951.0,68948.0,0.14579704]
[1730674817491,0.130529,68951.0,68930.0,0.005]
[1730674817492,0.00476582,68940.0,68930.0,0.005]
[1730674817713,0.261058,68950.0,68935.0,0.21652989]
[1730674817714,0.13531682,68939.0,68935.0,0.21652989]
[1730674817937,0.13531682,68939.0,68935.0,0.27635404]
[1730674818161,0.13531682,68939.0,68929.0,0.1]
[1730674818162,0.00476582,68933.0,68920.0,0.005]
[1730674818383,0.22152989,68947.0,68924.0,0.34710689]
[1730674818384,0.130571,68928.0,68924.0,0.34710689]
[1730674818636,0.12765879,68946.0,68907.0,0.005]
[1730674818637,0.00476582,68921.0,68907.0,0.005]
[1730674818918,0.21652989,68932.0,68904.0,0.169963]
[1730674818919,0.00476582,68916.0,68914.0,0.21652989]
[1730674819146,0.00476582,68916.0,68900.0,0.343747]
[1730674819147,0.00476582,68911.0,68900.0,0.343747]
[1730674819376,0.00476582,68911.0,68907.0,0.130609]
[1730674819609,0.13536882,68911.0,68903.0,0.000821]
[1730674819841,0.13536882,68911.0,68904.0,0.130615]
[1730674820498,0.13536882,68911.0,68910.0,0.001821]
[1730674820959,0.17314541,68911.0,68910.0,0.001821]
[1730674821177,0.17814541,68911.0,68910.0,0.001821]
[1730674821448,0.32394245,68911.0,68910.0,0.001821]
[1730674821666,0.32394245,68911.0,68910.0,0.003821]
[1730674821888,0.32394245,68911.0,68910.0,0.001821]
[1730674822099,0.32394245,68911.0,68910.0,0.000821]
[1730674822567,0.33694245,68911.0,68910.0,0.004821]
[1730674822805,0.33694245,68911.0,68874.0,0.00105518]
[1730674822806,0.1278,68882.0,68874.0,0.00105518]
[1730674823048,0.135665,68878.0,68874.0,0.000821]
[1730674823271,0.14543082,68878.0,68874.0,0.000821]
[1730674823731,0.00476582,68864.0,68856.0,0.0064659]
[1730674823955,0.00476582,68864.0,68858.0,0.261407]
[1730674824407,0.00476582,68864.0,68863.0,0.130694]
[1730674824630,0.00476582,68864.0,68862.0,0.130694]
[1730674824854,0.261346,68874.0,68858.0,0.261407]
[1730674824855,0.00476582,68868.0,68863.0,0.15839731]
[1730674825093,0.00476582,68868.0,68865.0,0.13069]
[1730674825326,0.00476582,68868.0,68863.0,0.15839731]
[1730674825327,0.00476582,68877.0,68866.0,0.14870092]
[1730674825544,0.24452989,68878.0,68866.0,0.14870092]
[1730674825545,0.24452989,68878.0,68877.0,0.130667]
[1730674825762,0.014,68878.0,68877.0,0.37646404]
[1730674825980,0.014,68878.0,68877.0,0.56942704]
[1730674826203,0.014,68878.0,68877.0,0.57670144]
[1730674826872,0.21652989,68884.0,68878.0,0.1]
[1730674827099,0.00476582,68905.0,68891.0,0.230641]
[1730674827317,0.00476582,68910.0,68891.0,0.57253785]
[1730674827539,0.00976582,68909.0,68903.0,0.130618]
[1730674827812,0.00976582,68909.0,68903.0,0.27641504]
[1730674828028,0.00976582,68909.0,68903.0,0.15268663]
[1730674828029,0.261221,68907.0,68903.0,0.15268663]
[1730674828256,0.13061,68908.0,68903.0,0.28330463]
[1730674828479,0.13538182,68904.0,68903.0,0.00688959]
[1730674828692,0.13538182,68904.0,68887.0,0.00023418]
[1730674828693,0.00976582,68895.0,68885.0,0.1]
[1730674828926,0.00976582,68895.0,68893.0,0.21652989]
[1730674828927,0.130635,68894.0,68893.0,0.21652989]
[1730674829143,0.130639,68893.0,68887.0,0.130647]
[1730674829357,0.130637,68893.0,68888.0,0.14579704]
[1730674829573,0.00976582,68895.0,68888.0,0.14579704]
[1730674829816,0.130639,68892.0,68888.0,0.27644304]
[1730674830042,0.00976582,68895.0,68888.0,0.14579704]
[1730674830260,0.005,68886.0,68877.0,0.261332]
[1730674830471,0.005,68886.0,68879.0,0.21652989]
[1730674830681,0.005,68886.0,68881.0,0.130658]
[1730674830899,0.005,68886.0,68882.0,0.14579704]
[1730674831117,0.135651,68886.0,68882.0,0.14579704]
[1730674831326,0.24910163,68886.0,68882.0,0.14579704]
[1730674831756,0.005,68886.0,68883.0,0.130656]
[1730674831962,0.005,68886.0,68883.0,0.14579704]
[1730674832171,0.396952,68886.0,68883.0,0.14579704]
[1730674832384,0.005,68886.0,68883.0,0.14579704]
[1730674832860,0.130654,68884.0,68883.0,0.14579704]
[1730674833076,0.130654,68884.0,68845.0,0.04313949]
[1730674833077,0.31507581,68884.0,68870.0,0.023]
[1730674833296,0.00476582,68893.0,68883.0,0.22252989]
[1730674833515,0.008,68895.0,68883.0,0.006]
[1730674833516,0.00476582,68884.0,68883.0,0.006]
[1730674833742,0.42118201,68884.0,68883.0,0.006]
[1730674833982,0.42618201,68884.0,68883.0,0.006]
[1730674834246,0.43118201,68884.0,68883.0,0.006]
[1730674834467,0.130696,68862.0,68853.0,0.261424]
[1730674834678,0.130696,68862.0,68861.0,0.21652989]
[1730674834901,0.26614282,68866.0,68857.0,0.14579704]
[1730674834902,0.00476582,68866.0,68857.0,0.14579704]
[1730674835127,0.00476582,68859.0,68850.0,0.261436]
[1730674835365,0.13546782,68859.0,68853.0,0.392136]
[1730674835577,0.00476582,68859.0,68850.0,0.261436]
[1730674835794,0.00476582,68859.0,68854.0,0.13071]
[1730674836001,0.130704,68858.0,68854.0,0.13071]
[1730674836422,0.130704,68858.0,68856.0,0.0074659]
[1730674837110,0.18532187,68857.0,68856.0,0.0074659]
[1730674837338,0.18532187,68857.0,68841.0,0.001821]
[1730674837339,0.39071662,68842.0,68841.0,0.001821]
[1730674837560,0.00976582,68836.0,68823.0,0.13192455]
[1730674837784,0.130758,68829.0,68828.0,0.21652989]
[1730674838021,0.130766,68825.0,68824.0,0.14579704]
[1730674838239,0.130768,68824.0,68823.0,0.00115555]
[1730674838890,0.25498262,68825.0,68823.0,0.00115555]
[1730674839806,0.130768,68824.0,68823.0,0.00115555]
[1730674840500,0.005,68826.0,68823.0,0.00115555]
[1730674840794,0.130768,68824.0,68823.0,0.00115555]
[1730674841008,0.130768,68824.0,68823.0,0.00315555]
[1730674841231,0.135765,68826.0,68823.0,0.00315555]
[1730674841447,0.135765,68826.0,68823.0,0.00115555]
[1730674841668,0.130768,68824.0,68823.0,0.00115555]
[1730674842120,0.009,68826.0,68823.0,0.00115555]
[1730674842559,0.130768,68824.0,68823.0,0.00115555]
[1730674843238,0.008,68826.0,68823.0,0.00115555]
[1730674843456,0.135766,68826.0,68823.0,0.00115555]
[1730674843667,0.130768,68824.0,68823.0,0.00115555]
[1730674843883,0.13075,68834.0,68828.0,0.13076]
[1730674844103,0.34728789,68830.0,68824.0,0.14579704]
[1730674844336,0.005,68832.0,68827.0,0.130761]
[1730674844562,0.135754,68832.0,68827.0,0.14579704]
[1730674844774,0.005,68832.0,68827.0,0.14579704]
[1730674845188,0.130757,68830.0,68827.0,0.14579704]
[1730674845419,0.266508,68832.0,68827.0,0.14579704]
[1730674845420,0.13076,68828.0,68827.0,0.14579704]
[1730674845665,0.130758,68830.0,68827.0,0.14579704]
[1730674845905,0.13076,68828.0,68827.0,0.14579704]
[1730674846596,0.261519,68829.0,68823.0,0.00197655]
[1730674847080,0.130765,68826.0,68823.0,0.00197655]
[1730674847367,0.261519,68829.0,68823.0,0.00197655]
[1730674847601,0.130768,68824.0,68823.0,0.00197655]
[1730674849261,0.133768,68824.0,68823.0,0.00897655]
[1730674850180,0.23134459,68824.0,68823.0,0.00897655]
[1730674850871,0.22934459,68824.0,68823.0,0.00897655]
[1730674851113,0.22834459,68824.0,68823.0,0.00197655]
[1730674851342,0.22934459,68824.0,68823.0,0.00197655]
[1730674851578,0.131768,68824.0,68823.0,0.00297655]
[1730674851792,0.135768,68824.0,68823.0,0.00297655]
[1730674852003,0.135768,68824.0,68823.0,0.00197655]
[1730674852493,0.00476582,68827.0,68823.0,0.00197655]
[1730674852708,0.145768,68824.0,68823.0,0.00297655]
[1730674853911,0.14853382,68824.0,68823.0,0.00297655]
[1730674854133,0.14053382,68824.0,68823.0,0.00197655]
[1730674854379,0.14553382,68824.0,68823.0,0.00197655]
[1730674854625,0.14353382,68824.0,68823.0,0.00197655]
[1730674854876,0.14453382,68824.0,68823.0,0.00197655]
[1730674855104,0.18647548,68824.0,68823.0,0.00197655]
[1730674855454,0.18847548,68824.0,68823.0,0.00197655]
[1730674855891,0.18847548,68824.0,68823.0,0.00297655]
[1730674857020,0.23807548,68824.0,68823.0,0.00297655]
[1730674857248,0.23207548,68824.0,68823.0,0.00197655]
[1730674857681,0.24007548,68824.0,68823.0,0.00197655]
[1730674858102,0.23707548,68824.0,68823.0,0.00197655]
[1730674858305,0.26207548,68824.0,68823.0,0.00297655]
[1730674858930,0.26207548,68824.0,68823.0,0.00197655]
[1730674858931,0.25107548,68824.0,68823.0,0.00197655]
[1730674859236,0.26207548,68824.0,68823.0,0.00297655]
[1730674859676,0.21913382,68824.0,68823.0,0.00297655]
[1730674860347,0.165768,68824.0,68823.0,0.00297655]
[1730674860763,0.154768,68824.0,68823.0,0.00197655]
[1730674860971,0.17053382,68824.0,68823.0,0.00297655]
[1730674861437,0.17053382,68824.0,68823.0,0.00197655]
[1730674861650,0.17945957,68824.0,68823.0,0.00197655]
[1730674861835,0.18645957,68824.0,68823.0,0.00297655]
[1730674862075,0.15653382,68824.0,68823.0,0.00297655]
[1730674863261,0.14053382,68824.0,68823.0,0.00197655]
[1730674863502,0.139768,68824.0,68823.0,0.00297655]
[1730674863629,0.144768,68824.0,68823.0,0.00197655]
[1730674864095,0.153768,68824.0,68823.0,0.00297655]
[1730674864695,0.162768,68824.0,68823.0,0.00397655]
[1730674864973,0.2365924,68824.0,68823.0,0.00397655]
[1730674865191,0.2275924,68824.0,68823.0,0.00297655]
[1730674865849,0.2345924,68824.0,68823.0,0.00397655]
[1730674866560,0.16553382,68824.0,68823.0,0.00397655]
[1730674870811,0.38206371,68824.0,68823.0,0.00397655]
[1730674871064,0.40023382,68824.0,68823.0,0.00397655]
[1730674871306,0.55103086,68824.0,68823.0,0.00397655]
[1730674871605,0.59576144,68824.0,68823.0,0.00397655]
[1730674871839,0.70764338,68824.0,68823.0,0.00397655]
[1730674872070,0.70064338,68824.0,68823.0,0.00297655]
[1730674872525,0.75759864,68824.0,68823.0,0.00397655]
[1730674872982,0.71164338,68824.0,68823.0,0.00397655]
[1730674873211,0.71164338,68824.0,68823.0,0.00297655]
[1730674873212,0.69564338,68824.0,68823.0,0.00297655]
[1730674873658,0.70864338,68824.0,68823.0,0.00297655]
[1730674873899,0.00735915,68800.0,68798.0,0.00581851]
[1730674874191,0.00735915,68800.0,68789.0,0.0011596]
[1730674874192,0.130817,68798.0,68789.0,0.0011596]
[1730674874439,0.135817,68798.0,68789.0,0.0011596]
[1730674874663,0.135817,68798.0,68790.0,0.00581873]
[1730674874900,0.135817,68798.0,68791.0,0.00581873]
[1730674875142,0.135817,68798.0,68789.0,0.0011596]
[1730674875373,0.39846953,68798.0,68789.0,0.0011596]
[1730674875607,0.39846953,68798.0,68789.0,0.0001596]
[1730674875608,0.53528044,68790.0,68789.0,0.0001596]
[1730674875867,0.63528044,68790.0,68789.0,0.0001596]
[1730674876357,0.27360182,68788.0,68787.0,3e-07]
[1730674876586,0.25350591,68788.0,68787.0,3e-07]
[1730674876821,0.25350591,68788.0,68780.0,9e-05]
[1730674876822,0.25261382,68782.0,68780.0,9e-05]
[1730674877047,0.25351791,68782.0,68780.0,9e-05]
[1730674877287,0.24851791,68782.0,68780.0,9e-05]
[1730674877512,0.25551791,68782.0,68780.0,9e-05]
[1730674877750,0.25351791,68782.0,68780.0,9e-05]
[1730674878206,0.14351791,68782.0,68780.0,9e-05]
[1730674878214,0.14061382,68782.0,68780.0,9e-05]
[1730674878475,0.13402519,68782.0,68780.0,9e-05]
[1730674878724,0.1416951,68782.0,68780.0,9e-05]
[1730674879242,0.28749214,68782.0,68780.0,9e-05]
[1730674879479,0.28749214,68782.0,68754.0,0.00221984]
[1730674879480,0.13764301,68762.0,68752.0,0.03040396]
[1730674879746,0.13408019,68753.0,68752.0,0.03040396]
[1730674880496,0.13884601,68753.0,68752.0,0.03040396]
[1730674880954,0.13884601,68753.0,68752.0,0.02540396]
[1730674881190,0.14884601,68753.0,68752.0,0.02540396]
[1730674882177,0.15584601,68753.0,68752.0,0.02540396]
[1730674882635,0.14408019,68753.0,68752.0,0.02540396]
[1730674882861,0.14108019,68753.0,68752.0,0.02540396]
[1730674883124,0.14584601,68753.0,68752.0,0.02540396]
[1730674883355,0.14984601,68753.0,68752.0,0.02540396]
[1730674883618,0.13884601,68753.0,68752.0,0.02540396]
[1730674883867,0.20658721,68753.0,68752.0,0.02540396]
[1730674884116,0.2064913,68753.0,68752.0,0.02540396]
[1730674884593,0.1487501,68753.0,68752.0,0.02540396]
[1730674885308,0.1417501,68753.0,68752.0,0.02540396]
[1730674885562,0.30254714,68753.0,68752.0,0.02540396]
[1730674885856,0.29485053,68753.0,68752.0,0.02540396]
[1730674886083,0.50384163,68746.0,68745.0,0.00290797]
[1730674886319,0.64963867,68746.0,68745.0,0.00290797]
[1730674886764,0.64963867,68746.0,68745.0,9.7e-07]
[1730674886991,0.14886701,68742.0,68741.0,0.001]
[1730674887213,0.46716814,68742.0,68741.0,0.001]
[1730674887455,0.46716814,68742.0,68728.0,0.000822]